{"text_format":"1","workbook":"xlsx","n_sheets":1,"sheets":["2018-2019"],"not_rendered":{"charts":0,"images":0,"macros":1,"external_links":0,"defined_names":2,"comments":0,"pivot_tables":0},"unopened":[],"bounds":{"document_bytes":16777216,"sheet_cells":100000,"rows_first":2000,"rows_last":500,"rows_between":2000,"halvings":0,"cell_chars":16384,"cell_head_chars":4096},"cells_cut":0,"cells_raw":0,"read":"whole","date_system":"1900"}

{"sheet":"2018-2019","index":0,"n_rows":52,"n_cols":71,"rows_kept":52,"cut":false,"hidden":false,"merged":[[8,42,8,51],[8,56,8,64],[10,62,13,62],[10,63,13,63],[10,64,13,64],[10,50,13,50],[9,42,9,44],[9,45,9,47],[10,46,13,46],[10,47,13,47],[10,40,13,40],[9,56,9,58],[9,59,9,61],[10,56,13,56],[10,57,13,57],[10,58,13,58],[10,59,13,59],[10,60,13,60],[10,61,13,61],[10,51,13,51],[10,42,13,42],[10,43,13,43],[10,44,13,44],[10,45,13,45],[10,48,13,48],[10,49,13,49],[10,4,10,10],[10,30,11,31],[10,32,11,33],[12,30,13,30],[12,31,13,31],[12,32,13,32],[12,33,13,33],[11,6,13,6],[11,5,13,5],[11,4,13,4],[11,9,12,10],[11,11,11,14],[10,39,13,39],[10,11,10,18],[12,15,12,16],[10,19,13,19],[10,20,12,21],[10,38,13,38],[12,13,12,14],[12,11,12,12],[8,0,8,28],[10,22,13,22],[10,25,11,26],[10,23,11,24],[10,28,13,28],[12,26,13,26],[12,25,13,25],[12,24,13,24],[10,1,11,2],[12,2,13,2],[12,1,13,1],[10,0,13,0],[11,15,11,18],[12,17,12,18],[11,7,12,8],[10,3,13,3],[14,20,14,21],[12,37,13,37],[10,34,11,35],[10,36,11,37],[12,34,13,34],[12,35,13,35],[12,36,13,36],[10,29,13,29],[10,27,13,27],[12,23,13,23]]}
[null,null,null,null,null,null,null,null,null,null,null,null,null,null,null,null,null,null,null,null,null,null,null,null,null,null,null,null,null,null,null,null,null,null,null,null,null,null,null,null,null,null,null,null,null,null,null,null,null,null,null,null,null,null,null,null,null,null,null,null,null,null,null,null,null,null,null,null,null,"Data","Sarbatoare"]
[null,null,null,null,null,null,null,null,null,null,null,null,null,null,null,null,null,null,null,null,null,null,null,null,null,null,null,null,null,null,null,null,null,null,null,null,null,null,null,null,null,null,null,null,null,null,null,null,null,null,null,null,null,null,null,null,null,null,null,null,null,null,null,null,null,null,null,null,null,"2018-11-30","Sf Andrei"]
[null,null,null,null,null,null,null,null,null,null,null,null,null,null,null,null,null,null,null,null,null,null,null,null,null,null,null,null,null,null,null,null,null,null,null,null,null,null,null,null,null,null,null,null,null,null,null,null,null,null,null,null,null,null,null,null,null,null,null,null,null,null,null,null,null,null,null,null,null,"2018-12-01","Ziua Nationala"]
[null,null,null,null,null,null,null,null,null,null,null,null,null,null,null,null,null,null,null,null,null,null,null,null,null,null,null,null,null,null,null,null,null,null,null,null,null,null,null,null,null,null,null,null,null,null,null,null,null,null,null,null,null,null,null,null,null,null,null,null,null,null,null,null,null,null,null,null,null,"2018-12-25","Craciun prima zi"]
[null,null,null,null,null,null,null,null,null,null,null,null,null,null,null,null,null,null,null,null,null,null,null,null,null,null,null,null,null,null,null,null,null,null,null,null,null,null,null,null,null,null,null,null,null,null,null,null,null,null,null,null,null,null,null,null,null,null,null,null,null,null,null,null,null,null,null,null,null,"2018-12-26","Craciun a doua zi"]
[null,null,null,null,null,null,null,null,null,null,null,null,null,null,null,null,null,null,null,null,null,null,null,null,null,null,null,null,null,null,null,null,null,null,null,null,null,null,null,null,null,null,null,null,null,null,null,null,null,null,null,null,null,null,null,null,null,null,null,null,null,null,null,null,null,null,null,null,null,"2019-01-01","Anul nou prima zi"]
[null,null,null,null,null,null,null,null,null,null,null,null,null,null,null,null,null,null,null,null,null,null,null,null,null,null,null,null,null,null,null,null,null,null,null,null,null,null,null,null,null,null,null,null,null,null,null,null,null,null,null,null,null,null,null,null,null,null,null,null,null,null,null,null,null,null,null,null,null,"2019-01-02","Anul nou a doua zi"]
[null,null,null,null,null,null,null,null,null,null,null,null,null,null,null,null,null,null,null,null,null,null,null,null,null,null,null,null,null,null,null,null,null,null,null,null,null,null,null,null,null,null,null,null,null,null,null,null,null,null,null,null,null,"parteneri adiacenti","UR",null,null,null,null,null,null,null,null,null,null,null,"parteneri adiacenti","UR",null,"2019-01-24","Ziua unirii"]
["EVIDENȚA LIMITĂRILOR ȘI/SAU ÎNTRERUPERILOR PLANIFICATE ȘI NEPLANIFICATE pentru anul gazier 2017 - 2018 / RECORD OF THE PLANNED AND UNPLANNED LIMITATIONS AND/OR INTERRUPTIONS related to the gas year 2017 - 2018",null,null,null,null,null,null,null,null,null,null,null,null,null,null,null,null,null,null,null,null,null,null,null,null,null,null,null,null,null,null,null,null,null,null,null,null,null,null,null,null,null,"Lucrari neprogramate",null,null,null,null,null,null,null,null,null,"NU6 ",{"$f":"SUBTOTAL(9,AR:AR)","v":24},{"$f":"SUBTOTAL(9,AU:AU)","v":608},null,"Lucrari programate",null,null,null,null,null,null,null,null,"NU5",{"$f":"SUBTOTAL(9,BF:BF)","v":0},{"$f":"SUBTOTAL(9,BI:BI)","v":0},null,"2019-04-26","Vinerea Mare"]
[null,null,null,null,null,null,null,null,null,null,null,null,null,null,null,null,null,null,null,null,null,null,null,null,null,null,null,null,null,null,null,null,null,null,null,null,null,null,null,null,null,null,"Partener adiacent",null,null,"UR",null,null,null,null,null,null,"NUafectati ",{"$f":"SUBTOTAL(9,AS:AS)","v":25},{"$f":"SUBTOTAL(9,AV:AV)","v":654},null,"Partener adiacent",null,null,"UR",null,null,null,null,null,"NUafectati ",{"$f":"SUBTOTAL(9,BG:BG)","v":0},{"$f":"SUBTOTAL(9,BJ:BJ)","v":0},null,"2019-04-29","Paste"]
["Nr. crt. / Item No.","Tipul limitării/întreruperii / \nType of limitation/interruption",null,"Denumire lucrare/motiv limitare și/sau întrerupere / \nName of the works/reason for the limitation and/or interruption ","Locația limitării/întreruperii / Location of the limitation/interruption ",null,null,null,null,null,null,"Punct de ieșire/intrare afectat / Affected exit/entry point",null,null,null,null,null,null,null,"Cod punct relevant / Code of the relevant point","Utilizator ST afectat / Affected TS user ",null,"Perioada planificată de execuție a lucrării / Planned period for the execution of the works","Data și ora limitării/întreruperii / Date and hour of the limitation/interruption ",null,"Data și ora reluării prestării serviciului / Date and hour the service supply is resumed",null,"Exploatarea Teritorială / Regional Office","Observații / Comments","Justificarea modificării perioadei planificate de execuție a lucrări","Data și ora efectivă de limitare/întrerupere ",null,"Data și ora efectivă de reluare a prestării serviciului",null,"Data și ora informării UR",null,"Data și ora informării partenerului adiacent",null,"Foaia de manevră","A fost afectat producătorul (în cazul PM) sau consumatorul final (în cazul SM)? \n(DA/NU)","Observatii",null,"Numar de ore de la producerea intreruperii / limitarii pana la anuntarea partenerului adiacent\n (trebuie sa fie mai mic decat 6)","NU6","NUafectati","Numar de ore de la producerea intreruperii / limitarii pana la anuntarea UR\n (trebuie sa fie mai mic decat 6)","NU6","NUafectati","Durata intreruperii / limitarii [ore]\n(daca este mai mare de 24, trebuie sa fie completata celula aferenta de pe coloana AZ)","NU24","Nuafectati","Partener adiacent informat din 12 in 12 ore, daca durata mai mare de 24h\n(DA/NU)","NU6 ",{"$f":"BB9+BC9","v":632},"IP51",null,"Numar de zile lucratoare de anuntare partener adiacent pana la limitare / intrerupere (trebuie sa fie mai mare de 5)","NU5","NUafectati","Numar de zile de anuntare UR pana la limitare / intrerupere \n(trebuie sa fie mai mare de 5)","NU5","NUafectati","Numar ore intre data anuntata si cea efectiva de reluare\n(trebuie sa fie mai mic sau egal cu 0)","NUreluate","NUafectati","NU5",{"$f":"BO9+BP9","v":0},"IP61",null,"2019-05-01","Ziua muncii"]
[null,null,null,null,"Siruta / Siruta code","Localitate / Locality","Județ / County","Coordonate GPS început / GPS coordinates-beginning",null,"Coordonate GPS sfârșit / GPS coordinates-end",null,"Puncte de ieșire din SNT / NTS exit points",null,null,null,"Puncte de intrare în SNT / NTS entry points ",null,null,null,null,null,null,null,null,null,null,null,null,null,null,null,null,null,null,null,null,null,null,null,null,null,null,null,null,null,null,null,null,null,null,null,null,"NUafectati ",{"$f":"BB10+BC10","v":679},{"$f":"BB11/BB12","v":0.93078055964653905},null,null,null,null,null,null,null,null,null,null,"NUafectati ",{"$f":"BO10+BP10","v":0},{"$f":"IF(BO12=0,1,BO11/BO12)","v":1},null,"2019-06-01","Ziua copilului"]
[null,"Neplanificată / Unplanned","Planificată / Planned",null,null,null,null,null,null,null,null,"Limitare / Limitation",null,"Întrerupere / Interruption",null,"Limitare / Limitation",null,"Întrerupere / Interruption",null,null,null,null,null,"Data / Date","Ora / Hour","Data / Date","Ora / Hour",null,null,null,"Data","Ora","Data","Ora","Data","Ora","Data","Ora",null,null,null,null,null,null,null,null,null,null,null,null,null,null,"NU24",{"$f":"SUBTOTAL(9,AX:AX)","v":6},"IP52",null,null,null,null,null,null,null,null,null,null,"NUreluare",{"$f":"SUBTOTAL(9,BL:BL)","v":0},"IP62",null,"2019-06-17","Rusalii"]
[null,null,null,null,null,null,null,"X1","Y1","X2","Y2","Cod / Code","Denumire / Name","Cod / Code","Denumire / Name","Cod / Code","Denumire / Name","Cod / Code","Denumire / Name",null,"Utilizator de rețea / Network User","Partener adiacent / Adjacent Partner",null,null,null,null,null,null,null,null,null,null,null,null,null,null,null,null,null,null,null,null,null,null,null,null,null,null,null,null,null,null,"NUafectati",{"$f":"SUBTOTAL(9,AY:AY)","v":6},{"$f":"IFERROR(BB13/BB14,1)","v":1},null,null,null,null,null,null,null,null,null,null,"NUafectati",{"$f":"SUBTOTAL(9,BM:BM)","v":0},{"$f":"IF(BO14=0,1,BO13/BO14)","v":1},null,"2019-08-15","Adormirea Maicii Domnului"]
[0,1,2,3,4,5,6,7,8,9,10,11,12,13,14,15,16,17,18,19,20,null,21,22,23,24,25,26,27,null,28,29,30,31,33,34,35,36,37,38]
[{"$f":"SUM(1,$A15)","v":1},"X","-","Înlocuire instalație tehnologică la SRM Gănești",116938,"Gănești","Mureș",450776.63928469998,537967.62167144998,450776.63928469998,537967.62167144998,"-","-","SM0662D0","Gănești","-","-","-","-","SM-SD001","Engie România, Electrica Furnizare, Premier Energy Trading, Premier Energy, Restart Energy One, Wiee România, E.On Energie, E.ON Gaz Furnizare, OMV Petrom Gas, CEZ Vanzare, Enel Energie , Energia Gas&Power, Gaz Est, MET România, Nova Power&Gas, Energy Distribution, CPL Concordia, Hargaz Harghita, Prisma Serv, Conef Gaz, Distrigaz Vest, Next Energy, CIS Gaz, Aderro GP, Tinmar Energy, Enel Energie Muntenia, RWE Supply, Cyeb, Entrex Services, OMV Petrom, Electric&Gas Power, Pado Group, Design Proiect, Hermes Energy&Gas, Eva Energy, Gazmir Iasi, SST Grup Transilvania, Energy Gas Provider, RWE Energie, ICCO Energ, Delagaz&Energie, Mihoc Oil, Gaz Vest, Top Gas Network","Delgaz Grid","-","2018-10-02","09:00:00","2018-10-02","17:00:00","Mediaș","Efectuată","-","2018-10-02","09:00:00","2018-10-02","17:00:00","2018-10-02","09:36:00","2018-10-02","09:22:00","8047/01.10.2018","DA",null,null,{"$f":"IF(B16=\"X\",IF(AN16=\"\",\"Afectat sau NU?\",IF(AN16=\"DA\",IF(((AK16+AL16)-(AE16+AF16))*24<-720,\"Neinformat\",((AK16+AL16)-(AE16+AF16))*24),\"Nu a fost afectat producator/consumator\")),\"\")","v":0.36666666663950309},{"$f":"IF(B16=\"X\",IF(AN16=\"DA\",IF(AQ16<6,LEN(TRIM(V16))-LEN(SUBSTITUTE(V16,CHAR(44),\"\"))+1,0),\"-\"),\"\")","v":1},{"$f":"IF(B16=\"X\",IF(AN16=\"DA\",LEN(TRIM(V16))-LEN(SUBSTITUTE(V16,CHAR(44),\"\"))+1,\"-\"),\"\")","v":1},{"$f":"IF(B16=\"X\",IF(AN16=\"\",\"Afectat sau NU?\",IF(AN16=\"DA\",IF(((AI16+AJ16)-(AE16+AF16))*24<-720,\"Neinformat\",((AI16+AJ16)-(AE16+AF16))*24),\"Nu a fost afectat producator/consumator\")),\"\")","v":0.6000000000349246},{"$f":"IF(B16=\"X\",IF(AN16=\"DA\",IF(AT16<6,LEN(TRIM(U16))-LEN(SUBSTITUTE(U16,CHAR(44),\"\"))+1,0),\"-\"),\"\")","v":44},{"$f":"IF(B16=\"X\",IF(AN16=\"DA\",LEN(TRIM(U16))-LEN(SUBSTITUTE(U16,CHAR(44),\"\"))+1,\"-\"),\"\")","v":44},{"$f":"IF(B16=\"X\",IF(AN16=\"\",\"Afectat sau NU?\",IF(AN16=\"DA\",((AG16+AH16)-(AE16+AF16))*24,\"Nu a fost afectat producator/consumator\")),\"\")","v":8.0000000000582077},{"$f":"IF(B16=\"X\",IF(AN16=\"DA\",IF(AW16>24,IF(AZ16=\"NU\",0,LEN(TRIM(V16))-LEN(SUBSTITUTE(V16,CHAR(44),\"\"))+1),0),\"-\"),\"\")","v":0},{"$f":"IF(B16=\"X\",IF(AN16=\"DA\",IF(AW16>24,LEN(TRIM(V16))-LEN(SUBSTITUTE(V16,CHAR(44),\"\"))+1,0),\"-\"),\"\")","v":0},null,null,null,null,null,{"$f":"IF(C16=\"X\",IF(AN16=\"\",\"Afectat sau NU?\",IF(AN16=\"DA\",IF(AK16=\"\",\"Neinformat\",NETWORKDAYS(AK16+AL16,AE16+AF16,$BR$2:$BR$14)-1),\"Nu a fost afectat producator/consumator\")),\"\")","v":""},{"$f":"IF(C16=\"X\",IF(AN16=\"DA\",IF(AND(BE16>=5,AK16<>\"\"),LEN(TRIM(V16))-LEN(SUBSTITUTE(V16,CHAR(44),\"\"))+1,0),\"-\"),\"\")","v":""},{"$f":"IF(C16=\"X\",IF(AN16=\"DA\",LEN(TRIM(V16))-LEN(SUBSTITUTE(V16,CHAR(44),\"\"))+1,\"-\"),\"\")","v":""},{"$f":"IF(C16=\"X\",IF(AN16=\"\",\"Afectat sau NU?\",IF(AN16=\"DA\",IF(AI16=\"\",\"Neinformat\",NETWORKDAYS(AI16+AJ16,AE16+AF16,$BR$2:$BR$14)-1),\"Nu a fost afectat producator/consumator\")),\"\")","v":""},{"$f":"IF(C16=\"X\",IF(AN16=\"DA\",IF(AND(BH16>=5,AI16<>\"\"),LEN(TRIM(U16))-LEN(SUBSTITUTE(U16,CHAR(44),\"\"))+1,0),\"-\"),\"\")","v":""},{"$f":"IF(C16=\"X\",IF(AN16=\"DA\",LEN(TRIM(U16))-LEN(SUBSTITUTE(U16,CHAR(44),\"\"))+1,\"-\"),\"\")","v":""},{"$f":"IF(C16=\"X\",IF(AN16=\"\",\"Afectat sau NU?\",IF(AN16=\"DA\",((AG16+AH16)-(Z16+AA16))*24,\"Nu a fost afectat producator/consumator\")),\"\")","v":""},{"$f":"IF(C16=\"X\",IF(AN16<>\"DA\",\"-\",IF(AND(AN16=\"DA\",BK16<=0),LEN(TRIM(V16))-LEN(SUBSTITUTE(V16,CHAR(44),\"\"))+1+LEN(TRIM(U16))-LEN(SUBSTITUTE(U16,CHAR(44),\"\"))+1,0)),\"\")","v":""},{"$f":"IF(C16=\"X\",IF(AN16=\"DA\",LEN(TRIM(V16))-LEN(SUBSTITUTE(V16,CHAR(44),\"\"))+1+LEN(TRIM(U16))-LEN(SUBSTITUTE(U16,CHAR(44),\"\"))+1,\"-\"),\"\")","v":""}]
[{"$f":"SUM(1,$A16)","v":2},"X","-","Montare îmbinări electroizolante pe racordurile SRM-urilor Bogatu Român, Presaca, Păuca, Broșteni",114319,"Târgu Mureș","Mureș",417976.52887038002,500254.77194359002,417976.52887038002,500254.77194359002,"-","-","-","-","-","-","PM0250","Mureș P12 Depo Extras","PM0250","Wiee România, Engie România","DepoMureș","-","2018-10-02","09:00:00","2018-10-02","17:00:00","Mediaș","Efectuată","-","2018-10-02","09:00:00","2018-10-02","17:00:00",null,null,null,null,"8046/01.10.2018","DA",null,null,{"$f":"IF(B17=\"X\",IF(AN17=\"\",\"Afectat sau NU?\",IF(AN17=\"DA\",IF(((AK17+AL17)-(AE17+AF17))*24<-720,\"Neinformat\",((AK17+AL17)-(AE17+AF17))*24),\"Nu a fost afectat producator/consumator\")),\"\")","v":"Neinformat"},{"$f":"IF(B17=\"X\",IF(AN17=\"DA\",IF(AQ17<6,LEN(TRIM(V17))-LEN(SUBSTITUTE(V17,CHAR(44),\"\"))+1,0),\"-\"),\"\")","v":0},{"$f":"IF(B17=\"X\",IF(AN17=\"DA\",LEN(TRIM(V17))-LEN(SUBSTITUTE(V17,CHAR(44),\"\"))+1,\"-\"),\"\")","v":1},{"$f":"IF(B17=\"X\",IF(AN17=\"\",\"Afectat sau NU?\",IF(AN17=\"DA\",IF(((AI17+AJ17)-(AE17+AF17))*24<-720,\"Neinformat\",((AI17+AJ17)-(AE17+AF17))*24),\"Nu a fost afectat producator/consumator\")),\"\")","v":"Neinformat"},{"$f":"IF(B17=\"X\",IF(AN17=\"DA\",IF(AT17<6,LEN(TRIM(U17))-LEN(SUBSTITUTE(U17,CHAR(44),\"\"))+1,0),\"-\"),\"\")","v":0},{"$f":"IF(B17=\"X\",IF(AN17=\"DA\",LEN(TRIM(U17))-LEN(SUBSTITUTE(U17,CHAR(44),\"\"))+1,\"-\"),\"\")","v":2},{"$f":"IF(B17=\"X\",IF(AN17=\"\",\"Afectat sau NU?\",IF(AN17=\"DA\",((AG17+AH17)-(AE17+AF17))*24,\"Nu a fost afectat producator/consumator\")),\"\")","v":8.0000000000582077},{"$f":"IF(B17=\"X\",IF(AN17=\"DA\",IF(AW17>24,IF(AZ17=\"NU\",0,LEN(TRIM(V17))-LEN(SUBSTITUTE(V17,CHAR(44),\"\"))+1),0),\"-\"),\"\")","v":0},{"$f":"IF(B17=\"X\",IF(AN17=\"DA\",IF(AW17>24,LEN(TRIM(V17))-LEN(SUBSTITUTE(V17,CHAR(44),\"\"))+1,0),\"-\"),\"\")","v":0},null,null,null,null,null,{"$f":"IF(C17=\"X\",IF(AN17=\"\",\"Afectat sau NU?\",IF(AN17=\"DA\",IF(AK17=\"\",\"Neinformat\",NETWORKDAYS(AK17+AL17,AE17+AF17,$BR$2:$BR$14)-1),\"Nu a fost afectat producator/consumator\")),\"\")","v":""},{"$f":"IF(C17=\"X\",IF(AN17=\"DA\",IF(AND(BE17>=5,AK17<>\"\"),LEN(TRIM(V17))-LEN(SUBSTITUTE(V17,CHAR(44),\"\"))+1,0),\"-\"),\"\")","v":""},{"$f":"IF(C17=\"X\",IF(AN17=\"DA\",LEN(TRIM(V17))-LEN(SUBSTITUTE(V17,CHAR(44),\"\"))+1,\"-\"),\"\")","v":""},{"$f":"IF(C17=\"X\",IF(AN17=\"\",\"Afectat sau NU?\",IF(AN17=\"DA\",IF(AI17=\"\",\"Neinformat\",NETWORKDAYS(AI17+AJ17,AE17+AF17,$BR$2:$BR$14)-1),\"Nu a fost afectat producator/consumator\")),\"\")","v":""},{"$f":"IF(C17=\"X\",IF(AN17=\"DA\",IF(AND(BH17>=5,AI17<>\"\"),LEN(TRIM(U17))-LEN(SUBSTITUTE(U17,CHAR(44),\"\"))+1,0),\"-\"),\"\")","v":""},{"$f":"IF(C17=\"X\",IF(AN17=\"DA\",LEN(TRIM(U17))-LEN(SUBSTITUTE(U17,CHAR(44),\"\"))+1,\"-\"),\"\")","v":""},{"$f":"IF(C17=\"X\",IF(AN17=\"\",\"Afectat sau NU?\",IF(AN17=\"DA\",((AG17+AH17)-(Z17+AA17))*24,\"Nu a fost afectat producator/consumator\")),\"\")","v":""},{"$f":"IF(C17=\"X\",IF(AN17<>\"DA\",\"-\",IF(AND(AN17=\"DA\",BK17<=0),LEN(TRIM(V17))-LEN(SUBSTITUTE(V17,CHAR(44),\"\"))+1+LEN(TRIM(U17))-LEN(SUBSTITUTE(U17,CHAR(44),\"\"))+1,0)),\"\")","v":""},{"$f":"IF(C17=\"X\",IF(AN17=\"DA\",LEN(TRIM(V17))-LEN(SUBSTITUTE(V17,CHAR(44),\"\"))+1+LEN(TRIM(U17))-LEN(SUBSTITUTE(U17,CHAR(44),\"\"))+1,\"-\"),\"\")","v":""}]
[3,"X","-","Relocare PM 12 Depo Extras Mureș si cuplare în conducta Ø24”Corunca",119242,"Corunca","Mureș",470480.43301733001,544999.72916176997,470480.43301733001,544999.72916176997,"-","-","SM1155D0","Corunca Înmagazinat","-","-","-","-","PM0250","Distrigaz Vest, Engie România, E.On Gaz Furnizare","DepoMureș","-","2018-10-04","06:00:00","2018-10-04","18:00:00","Mediaș","Efectuată","-","2018-10-04","06:00:00","2018-10-04","19:45:00","2018-10-04","09:16:00","2018-10-04","09:00:00","8112/02.10.2018","DA",null,null,{"$f":"IF(B18=\"X\",IF(AN18=\"\",\"Afectat sau NU?\",IF(AN18=\"DA\",IF(((AK18+AL18)-(AE18+AF18))*24<-720,\"Neinformat\",((AK18+AL18)-(AE18+AF18))*24),\"Nu a fost afectat producator/consumator\")),\"\")","v":3},1,1,3.2666666666627862,3,3,13.749999999941792,0,0,null,null,null,null,null,{"$f":"IF(C18=\"X\",IF(AN18=\"\",\"Afectat sau NU?\",IF(AN18=\"DA\",IF(AK18=\"\",\"Neinformat\",NETWORKDAYS(AK18+AL18,AE18+AF18,$BR$2:$BR$14)-1),\"Nu a fost afectat producator/consumator\")),\"\")","v":""},{"$f":"IF(C18=\"X\",IF(AN18=\"DA\",IF(AND(BE18>=5,AK18<>\"\"),LEN(TRIM(V18))-LEN(SUBSTITUTE(V18,CHAR(44),\"\"))+1,0),\"-\"),\"\")","v":""},{"$f":"IF(C18=\"X\",IF(AN18=\"DA\",LEN(TRIM(V18))-LEN(SUBSTITUTE(V18,CHAR(44),\"\"))+1,\"-\"),\"\")","v":""},{"$f":"IF(C18=\"X\",IF(AN18=\"\",\"Afectat sau NU?\",IF(AN18=\"DA\",IF(AI18=\"\",\"Neinformat\",NETWORKDAYS(AI18+AJ18,AE18+AF18,$BR$2:$BR$14)-1),\"Nu a fost afectat producator/consumator\")),\"\")","v":""},{"$f":"IF(C18=\"X\",IF(AN18=\"DA\",IF(AND(BH18>=5,AI18<>\"\"),LEN(TRIM(U18))-LEN(SUBSTITUTE(U18,CHAR(44),\"\"))+1,0),\"-\"),\"\")","v":""},{"$f":"IF(C18=\"X\",IF(AN18=\"DA\",LEN(TRIM(U18))-LEN(SUBSTITUTE(U18,CHAR(44),\"\"))+1,\"-\"),\"\")","v":""},{"$f":"IF(C18=\"X\",IF(AN18=\"\",\"Afectat sau NU?\",IF(AN18=\"DA\",((AG18+AH18)-(Z18+AA18))*24,\"Nu a fost afectat producator/consumator\")),\"\")","v":""},{"$f":"IF(C18=\"X\",IF(AN18<>\"DA\",\"-\",IF(AND(AN18=\"DA\",BK18<=0),LEN(TRIM(V18))-LEN(SUBSTITUTE(V18,CHAR(44),\"\"))+1+LEN(TRIM(U18))-LEN(SUBSTITUTE(U18,CHAR(44),\"\"))+1,0)),\"\")","v":""},{"$f":"IF(C18=\"X\",IF(AN18=\"DA\",LEN(TRIM(V18))-LEN(SUBSTITUTE(V18,CHAR(44),\"\"))+1+LEN(TRIM(U18))-LEN(SUBSTITUTE(U18,CHAR(44),\"\"))+1,\"-\"),\"\")","v":""}]
[4,"X","-","Sistare gaze prin SRM Fieni ieșire la cererea SC Carmense Holding Fieni ",65609,"Fieni","Dâmbovița",532409,403108,503409,403108,"-","-","SM0077D4","Fieni ieșire Carmeuse","-","-","-","-","SM-SD001","Engie România","Carmeuse Holding","-","2018-10-04","08:15:00","2018-10-04","14:00:00","Brașov","Efectuată","-","2018-10-04","08:15:00","2018-10-04","13:05:00","2018-10-04","10:03:00","2018-10-04","09:17:00","3927/04.10.2018","DA",null,null,{"$f":"IF(B19=\"X\",IF(AN19=\"\",\"Afectat sau NU?\",IF(AN19=\"DA\",IF(((AK19+AL19)-(AE19+AF19))*24<-720,\"Neinformat\",((AK19+AL19)-(AE19+AF19))*24),\"Nu a fost afectat producator/consumator\")),\"\")","v":1.03333333338378},{"$f":"IF(B19=\"X\",IF(AN19=\"DA\",IF(AQ19<6,LEN(TRIM(V19))-LEN(SUBSTITUTE(V19,CHAR(44),\"\"))+1,0),\"-\"),\"\")","v":1},{"$f":"IF(B19=\"X\",IF(AN19=\"DA\",LEN(TRIM(V19))-LEN(SUBSTITUTE(V19,CHAR(44),\"\"))+1,\"-\"),\"\")","v":1},{"$f":"IF(B19=\"X\",IF(AN19=\"\",\"Afectat sau NU?\",IF(AN19=\"DA\",IF(((AI19+AJ19)-(AE19+AF19))*24<-720,\"Neinformat\",((AI19+AJ19)-(AE19+AF19))*24),\"Nu a fost afectat producator/consumator\")),\"\")","v":1.7999999999301508},{"$f":"IF(B19=\"X\",IF(AN19=\"DA\",IF(AT19<6,LEN(TRIM(U19))-LEN(SUBSTITUTE(U19,CHAR(44),\"\"))+1,0),\"-\"),\"\")","v":1},{"$f":"IF(B19=\"X\",IF(AN19=\"DA\",LEN(TRIM(U19))-LEN(SUBSTITUTE(U19,CHAR(44),\"\"))+1,\"-\"),\"\")","v":1},{"$f":"IF(B19=\"X\",IF(AN19=\"\",\"Afectat sau NU?\",IF(AN19=\"DA\",((AG19+AH19)-(AE19+AF19))*24,\"Nu a fost afectat producator/consumator\")),\"\")","v":4.8333333333721384},{"$f":"IF(B19=\"X\",IF(AN19=\"DA\",IF(AW19>24,IF(AZ19=\"NU\",0,LEN(TRIM(V19))-LEN(SUBSTITUTE(V19,CHAR(44),\"\"))+1),0),\"-\"),\"\")","v":0},{"$f":"IF(B19=\"X\",IF(AN19=\"DA\",IF(AW19>24,LEN(TRIM(V19))-LEN(SUBSTITUTE(V19,CHAR(44),\"\"))+1,0),\"-\"),\"\")","v":0},null,null,null,null,null,{"$f":"IF(C19=\"X\",IF(AN19=\"\",\"Afectat sau NU?\",IF(AN19=\"DA\",IF(AK19=\"\",\"Neinformat\",NETWORKDAYS(AK19+AL19,AE19+AF19,$BR$2:$BR$14)-1),\"Nu a fost afectat producator/consumator\")),\"\")","v":""},{"$f":"IF(C19=\"X\",IF(AN19=\"DA\",IF(AND(BE19>=5,AK19<>\"\"),LEN(TRIM(V19))-LEN(SUBSTITUTE(V19,CHAR(44),\"\"))+1,0),\"-\"),\"\")","v":""},{"$f":"IF(C19=\"X\",IF(AN19=\"DA\",LEN(TRIM(V19))-LEN(SUBSTITUTE(V19,CHAR(44),\"\"))+1,\"-\"),\"\")","v":""},{"$f":"IF(C19=\"X\",IF(AN19=\"\",\"Afectat sau NU?\",IF(AN19=\"DA\",IF(AI19=\"\",\"Neinformat\",NETWORKDAYS(AI19+AJ19,AE19+AF19,$BR$2:$BR$14)-1),\"Nu a fost afectat producator/consumator\")),\"\")","v":""},{"$f":"IF(C19=\"X\",IF(AN19=\"DA\",IF(AND(BH19>=5,AI19<>\"\"),LEN(TRIM(U19))-LEN(SUBSTITUTE(U19,CHAR(44),\"\"))+1,0),\"-\"),\"\")","v":""},{"$f":"IF(C19=\"X\",IF(AN19=\"DA\",LEN(TRIM(U19))-LEN(SUBSTITUTE(U19,CHAR(44),\"\"))+1,\"-\"),\"\")","v":""},{"$f":"IF(C19=\"X\",IF(AN19=\"\",\"Afectat sau NU?\",IF(AN19=\"DA\",((AG19+AH19)-(Z19+AA19))*24,\"Nu a fost afectat producator/consumator\")),\"\")","v":""},{"$f":"IF(C19=\"X\",IF(AN19<>\"DA\",\"-\",IF(AND(AN19=\"DA\",BK19<=0),LEN(TRIM(V19))-LEN(SUBSTITUTE(V19,CHAR(44),\"\"))+1+LEN(TRIM(U19))-LEN(SUBSTITUTE(U19,CHAR(44),\"\"))+1,0)),\"\")","v":""},{"$f":"IF(C19=\"X\",IF(AN19=\"DA\",LEN(TRIM(V19))-LEN(SUBSTITUTE(V19,CHAR(44),\"\"))+1+LEN(TRIM(U19))-LEN(SUBSTITUTE(U19,CHAR(44),\"\"))+1,\"-\"),\"\")","v":""}]
[5,"X","-","Întrerupere serviciu transport gaze prin SRM Slatina - robinet defect",125347,"Slatina","Olt",451493,328149,451493,328149,"-","-","SM0947D2","Slatina","-","-","-","-","SM-SD001","Engie România, Electrica Furnizare, Premier Energy Trading, Premier Energy, Restart Energy One, Wiee România, E.On Energie, OMV Petrom Gas, CEZ Vanzare, Enel Energie , Energia Gas&Power, Gaz Est, MET România, Nova Power&Gas, Euro Seven Industry, Oligop, Energy Distribution, Electrocentrale Constanța, Hargaz Harghita, Conef Gaz, Megaconstruct, Distrigaz Vest, Electrocentrale București, Next Energy, CIS Gaz, Transenergo, Aderro GP, Tinmar Energy, Enel Energie Muntenia, RWE Supply, Romgaz, Cyeb, Entrex Services, OMV Petrom, Electric&Gas Power, Hermes Energy&Gas, Eva Energy, Gas Energy Echoterm, Energy Gas Provider, RWE Energie, ICCO Energ, Delagaz&Energie, Top Gas Network, Covi Construct 2000","Distrigaz Sud Rețele","-","2018-10-04","16:45:00","2018-10-04","18:30:00","Craiova","Efectuată","-","2018-10-04","16:45:00","2018-10-04","18:30:00","2018-10-04","21:11:00","2018-10-04","20:41:00","-","DA",null,null,{"$f":"IF(B20=\"X\",IF(AN20=\"\",\"Afectat sau NU?\",IF(AN20=\"DA\",IF(((AK20+AL20)-(AE20+AF20))*24<-720,\"Neinformat\",((AK20+AL20)-(AE20+AF20))*24),\"Nu a fost afectat producator/consumator\")),\"\")","v":3.933333333407063},{"$f":"IF(B20=\"X\",IF(AN20=\"DA\",IF(AQ20<6,LEN(TRIM(V20))-LEN(SUBSTITUTE(V20,CHAR(44),\"\"))+1,0),\"-\"),\"\")","v":1},{"$f":"IF(B20=\"X\",IF(AN20=\"DA\",LEN(TRIM(V20))-LEN(SUBSTITUTE(V20,CHAR(44),\"\"))+1,\"-\"),\"\")","v":1},{"$f":"IF(B20=\"X\",IF(AN20=\"\",\"Afectat sau NU?\",IF(AN20=\"DA\",IF(((AI20+AJ20)-(AE20+AF20))*24<-720,\"Neinformat\",((AI20+AJ20)-(AE20+AF20))*24),\"Nu a fost afectat producator/consumator\")),\"\")","v":4.4333333334652707},{"$f":"IF(B20=\"X\",IF(AN20=\"DA\",IF(AT20<6,LEN(TRIM(U20))-LEN(SUBSTITUTE(U20,CHAR(44),\"\"))+1,0),\"-\"),\"\")","v":44},{"$f":"IF(B20=\"X\",IF(AN20=\"DA\",LEN(TRIM(U20))-LEN(SUBSTITUTE(U20,CHAR(44),\"\"))+1,\"-\"),\"\")","v":44},{"$f":"IF(B20=\"X\",IF(AN20=\"\",\"Afectat sau NU?\",IF(AN20=\"DA\",((AG20+AH20)-(AE20+AF20))*24,\"Nu a fost afectat producator/consumator\")),\"\")","v":1.7500000001164153},{"$f":"IF(B20=\"X\",IF(AN20=\"DA\",IF(AW20>24,IF(AZ20=\"NU\",0,LEN(TRIM(V20))-LEN(SUBSTITUTE(V20,CHAR(44),\"\"))+1),0),\"-\"),\"\")","v":0},{"$f":"IF(B20=\"X\",IF(AN20=\"DA\",IF(AW20>24,LEN(TRIM(V20))-LEN(SUBSTITUTE(V20,CHAR(44),\"\"))+1,0),\"-\"),\"\")","v":0},null,null,null,null,null,{"$f":"IF(C20=\"X\",IF(AN20=\"\",\"Afectat sau NU?\",IF(AN20=\"DA\",IF(AK20=\"\",\"Neinformat\",NETWORKDAYS(AK20+AL20,AE20+AF20,$BR$2:$BR$14)-1),\"Nu a fost afectat producator/consumator\")),\"\")","v":""},{"$f":"IF(C20=\"X\",IF(AN20=\"DA\",IF(AND(BE20>=5,AK20<>\"\"),LEN(TRIM(V20))-LEN(SUBSTITUTE(V20,CHAR(44),\"\"))+1,0),\"-\"),\"\")","v":""},{"$f":"IF(C20=\"X\",IF(AN20=\"DA\",LEN(TRIM(V20))-LEN(SUBSTITUTE(V20,CHAR(44),\"\"))+1,\"-\"),\"\")","v":""},{"$f":"IF(C20=\"X\",IF(AN20=\"\",\"Afectat sau NU?\",IF(AN20=\"DA\",IF(AI20=\"\",\"Neinformat\",NETWORKDAYS(AI20+AJ20,AE20+AF20,$BR$2:$BR$14)-1),\"Nu a fost afectat producator/consumator\")),\"\")","v":""},{"$f":"IF(C20=\"X\",IF(AN20=\"DA\",IF(AND(BH20>=5,AI20<>\"\"),LEN(TRIM(U20))-LEN(SUBSTITUTE(U20,CHAR(44),\"\"))+1,0),\"-\"),\"\")","v":""},{"$f":"IF(C20=\"X\",IF(AN20=\"DA\",LEN(TRIM(U20))-LEN(SUBSTITUTE(U20,CHAR(44),\"\"))+1,\"-\"),\"\")","v":""},{"$f":"IF(C20=\"X\",IF(AN20=\"\",\"Afectat sau NU?\",IF(AN20=\"DA\",((AG20+AH20)-(Z20+AA20))*24,\"Nu a fost afectat producator/consumator\")),\"\")","v":""},{"$f":"IF(C20=\"X\",IF(AN20<>\"DA\",\"-\",IF(AND(AN20=\"DA\",BK20<=0),LEN(TRIM(V20))-LEN(SUBSTITUTE(V20,CHAR(44),\"\"))+1+LEN(TRIM(U20))-LEN(SUBSTITUTE(U20,CHAR(44),\"\"))+1,0)),\"\")","v":""},{"$f":"IF(C20=\"X\",IF(AN20=\"DA\",LEN(TRIM(V20))-LEN(SUBSTITUTE(V20,CHAR(44),\"\"))+1+LEN(TRIM(U20))-LEN(SUBSTITUTE(U20,CHAR(44),\"\"))+1,\"-\"),\"\")","v":""}]
[6,"X","-","Devierea si cuplarea unor tronsoane de conducta in zona autostrăzii A3 Brașov-Oradea, pe conductele Dn500 Bazna-Turda și Dn250 Avrămești-Chețani",116046,"Chețani","Mureș",427421.66,551604.23,427421.66,551604.23,"-","-","SM0651D0","Chețani II","-","-","-","-","SM-SD001","Engie România, Electrica Furnizare, Premier Energy Trading, Premier Energy, Restart Energy One, Wiee România, E.On Energie, E.ON Gaz Furnizare, OMV Petrom Gas, CEZ Vanzare, Enel Energie , Energia Gas&Power, Gaz Est, MET România, Nova Power&Gas, Energy Distribution, CPL Concordia, Hargaz Harghita, Prisma Serv, Conef Gaz, Distrigaz Vest, Next Energy, CIS Gaz, Aderro GP, Tinmar Energy, Enel Energie Muntenia, RWE Supply, Cyeb, Entrex Services, OMV Petrom, Electric&Gas Power, Pado Group, Design Proiect, Hermes Energy&Gas, Eva Energy, Gazmir Iasi, SST Grup Transilvania, Energy Gas Provider, RWE Energie, ICCO Energ, Delagaz&Energie, Mihoc Oil, Gaz Vest, Top Gas Network","Delgaz Grid","-","2018-10-08","08:15:00","2018-10-09","21:00:00","Cluj","Efectuată","-","2018-10-08","08:15:00","2018-10-09","21:00:00","2018-10-08","08:36:00","2018-10-08","08:20:00","11285/04.10.2018","DA",null,null,{"$f":"IF(B21=\"X\",IF(AN21=\"\",\"Afectat sau NU?\",IF(AN21=\"DA\",IF(((AK21+AL21)-(AE21+AF21))*24<-720,\"Neinformat\",((AK21+AL21)-(AE21+AF21))*24),\"Nu a fost afectat producator/consumator\")),\"\")","v":8.3333333255723119E-2},{"$f":"IF(B21=\"X\",IF(AN21=\"DA\",IF(AQ21<6,LEN(TRIM(V21))-LEN(SUBSTITUTE(V21,CHAR(44),\"\"))+1,0),\"-\"),\"\")","v":1},{"$f":"IF(B21=\"X\",IF(AN21=\"DA\",LEN(TRIM(V21))-LEN(SUBSTITUTE(V21,CHAR(44),\"\"))+1,\"-\"),\"\")","v":1},{"$f":"IF(B21=\"X\",IF(AN21=\"\",\"Afectat sau NU?\",IF(AN21=\"DA\",IF(((AI21+AJ21)-(AE21+AF21))*24<-720,\"Neinformat\",((AI21+AJ21)-(AE21+AF21))*24),\"Nu a fost afectat producator/consumator\")),\"\")","v":0.34999999991850927},{"$f":"IF(B21=\"X\",IF(AN21=\"DA\",IF(AT21<6,LEN(TRIM(U21))-LEN(SUBSTITUTE(U21,CHAR(44),\"\"))+1,0),\"-\"),\"\")","v":44},{"$f":"IF(B21=\"X\",IF(AN21=\"DA\",LEN(TRIM(U21))-LEN(SUBSTITUTE(U21,CHAR(44),\"\"))+1,\"-\"),\"\")","v":44},{"$f":"IF(B21=\"X\",IF(AN21=\"\",\"Afectat sau NU?\",IF(AN21=\"DA\",((AG21+AH21)-(AE21+AF21))*24,\"Nu a fost afectat producator/consumator\")),\"\")","v":36.75},{"$f":"IF(B21=\"X\",IF(AN21=\"DA\",IF(AW21>24,IF(AZ21=\"NU\",0,LEN(TRIM(V21))-LEN(SUBSTITUTE(V21,CHAR(44),\"\"))+1),0),\"-\"),\"\")","v":1},{"$f":"IF(B21=\"X\",IF(AN21=\"DA\",IF(AW21>24,LEN(TRIM(V21))-LEN(SUBSTITUTE(V21,CHAR(44),\"\"))+1,0),\"-\"),\"\")","v":1},"DA"]
[7,"X","-","Devierea si cuplarea unor tronsoane de conducta in zona autostrăzii A3 Brașov-Oradea, pe conductele Dn500 Bazna-Turda și Dn250 Avrămești-Chețani",114710,"Luduș","Cluj",429417.39,560010.37,429417.39,560010.37,"-","-","-","-","PM0122","Luduș","-","-","PM-PP001","Romgaz","Romgaz","-","2018-10-09","08:20:00","2018-10-10","18:00:00","Cluj","Efectuată","-","2018-10-09","08:20:00","2018-10-10","23:00:00","2018-10-09","09:08:00","2018-10-09","08:36:00","11285/04.10.2018","DA",null,null,0.26666666666278616,1,1,0.80000000016298145,1,1,38.666666666802485,1,1,"DA"]
[8,"X","-","Devierea si cuplarea unor tronsoane de conducta in zona autostrăzii A3 Brașov-Oradea, pe conductele Dn500 Bazna-Turda și Dn250 Avrămești-Chețani",116046,"Grindeni","Cluj",426418.05712499999,555027.37052600004,426418.05712499999,555027.37052600004,"-","-","SM0657D0","Grindeni","-","-","-","-","SM-SD001","Engie România, Electrica Furnizare, Premier Energy Trading, Premier Energy, Restart Energy One, Wiee România, E.On Energie, E.ON Gaz Furnizare, OMV Petrom Gas, CEZ Vanzare, Enel Energie , Energia Gas&Power, Gaz Est, MET România, Nova Power&Gas, Energy Distribution, CPL Concordia, Hargaz Harghita, Prisma Serv, Conef Gaz, Distrigaz Vest, Next Energy, CIS Gaz, Aderro GP, Tinmar Energy, Enel Energie Muntenia, RWE Supply, Cyeb, Entrex Services, OMV Petrom, Electric&Gas Power, Pado Group, Design Proiect, Hermes Energy&Gas, Eva Energy, Gazmir Iasi, SST Grup Transilvania, Energy Gas Provider, RWE Energie, ICCO Energ, Delagaz&Energie, Mihoc Oil, Gaz Vest, Top Gas Network","Delgaz Grid","-","2018-10-09","08:20:00","2018-10-09","18:00:00","Cluj","Efectuată","-","2018-10-09","08:20:00","2018-10-09","18:00:00","2018-10-09","09:01:00","2018-10-09","08:40:00","11285/04.10.2018","DA",null,null,0.33333333337213844,1,1,0.6833333334652707,44,44,9.6666666667442769,0,0]
[8,"X","-","Dezafectare separator orizontal și eliminarea unui cupon de conductă de pe conducta DN 250mm Calacea-Mașloc din zona SPC Orțișoara",158029,"Orțișoara","Timiș",206163.99,502928,206163.99,502928,"-","-","SM0116D0","Orțișoara","-","-","-","-","SM-SD001","Engie România, Restart Energy, E.On Energie, OMV Petrom, CEZ Vanzare, Enel Energie, Gaz Est, MET România, Energy Distribution, GAZ Vest, Distrigaz Vest,  Tinmar Energy, Electric&Gas Power, Energy Gas Provider, RWE Energie, Energia GAS, Premier Energy","Gaz Vest","-","10/102018","09:30:00","2018-10-10","18:00:00","Arad","Efectuată","-","2018-10-10","09:30:00","2018-10-10","16:15:00","2018-10-10","13:38:00","2018-10-10","10:08:00",null,"DA",null,null,0.63333333330228925,1,1,4.1333333333604969,16,16,6.75,0,0]
[9,"X","-","Dezafectare separator orizontal și eliminarea unui cupon de conductă de pe conducta DN 250mm Calacea-Mașloc din zona SPC Orțișoara",158653,"Sânandrei","Timiș",202718.7,491658.33,202718.7,491658.33,"-","-","SM1020D0","Sânandrei","-","-","-","-","SM-SD001","Engie România, Restart Energy, E.On Energie, OMV Petrom, CEZ Vanzare, Enel Energie, Gaz Est, MET România, Energy Distribution, GAZ Vest, Distrigaz Vest,  Tinmar Energy, Electric&Gas Power, Energy Gas Provider, RWE Energie, Energia GAS, Premier Energy","Gaz Vest","-","2018-10-10","10:15:00","2018-10-10","18:00:00","Arad","Efectuată","-","2018-10-10","10:15:00","2018-10-10","16:25:00","2018-10-10","10:56:00","2018-10-10","10:32:00",null,"DA",null,null,0.28333333320915699,1,1,0.68333333329064772,16,16,6.1666666666860692,0,0]
[10,"X","-","Eliminare dop de sare de pe conducta Ø10” Țeline-Sighișoara și montare ansamblu filtrare impurități",144401,"Țeline","Sibiu",493019,509674,488369,518128,"-","-","-","-","-","-","PM0156","Țeline","PM-PP001","Romgaz","Romgaz","-","2018-10-09","08:45:00","2018-10-11","16:00:00","Brașov","Efectuată","-","2018-10-09","08:45:00","2018-10-11","16:00:00","2018-10-09","10:39:00","2018-10-09","09:05:00","3988/08.10.2018","DA","PA a fost anuntat de la inceput pentru toata perioada de intrerupere",null,{"$f":"IF(B26=\"X\",IF(AN26=\"\",\"Afectat sau NU?\",IF(AN26=\"DA\",IF(((AK26+AL26)-(AE26+AF26))*24<-720,\"Neinformat\",((AK26+AL26)-(AE26+AF26))*24),\"Nu a fost afectat producator/consumator\")),\"\")","v":0.33333333319751546},{"$f":"IF(B26=\"X\",IF(AN26=\"DA\",IF(AQ26<6,LEN(TRIM(V26))-LEN(SUBSTITUTE(V26,CHAR(44),\"\"))+1,0),\"-\"),\"\")","v":1},{"$f":"IF(B26=\"X\",IF(AN26=\"DA\",LEN(TRIM(V26))-LEN(SUBSTITUTE(V26,CHAR(44),\"\"))+1,\"-\"),\"\")","v":1},{"$f":"IF(B26=\"X\",IF(AN26=\"\",\"Afectat sau NU?\",IF(AN26=\"DA\",IF(((AI26+AJ26)-(AE26+AF26))*24<-720,\"Neinformat\",((AI26+AJ26)-(AE26+AF26))*24),\"Nu a fost afectat producator/consumator\")),\"\")","v":1.8999999999068677},{"$f":"IF(B26=\"X\",IF(AN26=\"DA\",IF(AT26<6,LEN(TRIM(U26))-LEN(SUBSTITUTE(U26,CHAR(44),\"\"))+1,0),\"-\"),\"\")","v":1},{"$f":"IF(B26=\"X\",IF(AN26=\"DA\",LEN(TRIM(U26))-LEN(SUBSTITUTE(U26,CHAR(44),\"\"))+1,\"-\"),\"\")","v":1},{"$f":"IF(B26=\"X\",IF(AN26=\"\",\"Afectat sau NU?\",IF(AN26=\"DA\",((AG26+AH26)-(AE26+AF26))*24,\"Nu a fost afectat producator/consumator\")),\"\")","v":55.249999999883585},{"$f":"IF(B26=\"X\",IF(AN26=\"DA\",IF(AW26>24,IF(AZ26=\"NU\",0,LEN(TRIM(V26))-LEN(SUBSTITUTE(V26,CHAR(44),\"\"))+1),0),\"-\"),\"\")","v":1},{"$f":"IF(B26=\"X\",IF(AN26=\"DA\",IF(AW26>24,LEN(TRIM(V26))-LEN(SUBSTITUTE(V26,CHAR(44),\"\"))+1,0),\"-\"),\"\")","v":1},"DA"]
[11,"X","-","Cuplare instalație tehnologică nouă a SRMP Timișoara I",155243,"Timișoara","Timiș",210735.38,478039.45,210735.38,478039.45,"-","-","SM0334D0","Timișoara I","-","-","-","-","SM-SD001","Engie România, Electrica Furnizare, Premier Energy Trading, Premier Energy, Restart Energy One, Wiee România, E.On Energie, E.ON Gaz Furnizare, OMV Petrom Gas, CEZ Vanzare, Enel Energie , Energia Gas&Power, Gaz Est, MET România, Nova Power&Gas, Energy Distribution, CPL Concordia, Hargaz Harghita, Prisma Serv, Conef Gaz, Distrigaz Vest, Next Energy, CIS Gaz, Aderro GP, Tinmar Energy, Enel Energie Muntenia, RWE Supply, Cyeb, Entrex Services, OMV Petrom, Electric&Gas Power, Pado Group, Design Proiect, Hermes Energy&Gas, Eva Energy, Gazmir Iasi, SST Grup Transilvania, Energy Gas Provider, RWE Energie, ICCO Energ, Delagaz&Energie, Mihoc Oil, Gaz Vest, Top Gas Network","Delgaz Grid","-","2018-10-11","09:18:00","2018-10-12","18:00:00","Arad","Efectuată","-","2018-10-11","09:18:00","2018-10-11","18:30:00","2018-10-11","09:36:00","2018-10-09","09:18:00","8633/09.10.2018","DA",null,null,{"$f":"IF(B27=\"X\",IF(AN27=\"\",\"Afectat sau NU?\",IF(AN27=\"DA\",IF(((AK27+AL27)-(AE27+AF27))*24<-720,\"Neinformat\",((AK27+AL27)-(AE27+AF27))*24),\"Nu a fost afectat producator/consumator\")),\"\")","v":-48},{"$f":"IF(B27=\"X\",IF(AN27=\"DA\",IF(AQ27<6,LEN(TRIM(V27))-LEN(SUBSTITUTE(V27,CHAR(44),\"\"))+1,0),\"-\"),\"\")","v":1},{"$f":"IF(B27=\"X\",IF(AN27=\"DA\",LEN(TRIM(V27))-LEN(SUBSTITUTE(V27,CHAR(44),\"\"))+1,\"-\"),\"\")","v":1},{"$f":"IF(B27=\"X\",IF(AN27=\"\",\"Afectat sau NU?\",IF(AN27=\"DA\",IF(((AI27+AJ27)-(AE27+AF27))*24<-720,\"Neinformat\",((AI27+AJ27)-(AE27+AF27))*24),\"Nu a fost afectat producator/consumator\")),\"\")","v":0.30000000010477379},{"$f":"IF(B27=\"X\",IF(AN27=\"DA\",IF(AT27<6,LEN(TRIM(U27))-LEN(SUBSTITUTE(U27,CHAR(44),\"\"))+1,0),\"-\"),\"\")","v":44},{"$f":"IF(B27=\"X\",IF(AN27=\"DA\",LEN(TRIM(U27))-LEN(SUBSTITUTE(U27,CHAR(44),\"\"))+1,\"-\"),\"\")","v":44},{"$f":"IF(B27=\"X\",IF(AN27=\"\",\"Afectat sau NU?\",IF(AN27=\"DA\",((AG27+AH27)-(AE27+AF27))*24,\"Nu a fost afectat producator/consumator\")),\"\")","v":9.2000000001280569},{"$f":"IF(B27=\"X\",IF(AN27=\"DA\",IF(AW27>24,IF(AZ27=\"NU\",0,LEN(TRIM(V27))-LEN(SUBSTITUTE(V27,CHAR(44),\"\"))+1),0),\"-\"),\"\")","v":0},{"$f":"IF(B27=\"X\",IF(AN27=\"DA\",IF(AW27>24,LEN(TRIM(V27))-LEN(SUBSTITUTE(V27,CHAR(44),\"\"))+1,0),\"-\"),\"\")","v":0}]
[12,"X","-","Scoaterea din funcțiune a SRM Noul Săsesc ",144731,"Noul Săsesc","Sibiu",469574.98,511481.71,469574.98,511481.71,"-","-","SM0765D0","Noul Săsesc","-","-","-","-","SM-SD001","Engie România, Electrica Furnizare, Premier Energy Trading, Premier Energy, Restart Energy One, Wiee România, E.On Energie, E.ON Gaz Furnizare, OMV Petrom Gas, CEZ Vanzare, Enel Energie , Energia Gas&Power, Gaz Est, MET România, Nova Power&Gas, Energy Distribution, CPL Concordia, Hargaz Harghita, Prisma Serv, Conef Gaz, Distrigaz Vest, Next Energy, CIS Gaz, Aderro GP, Tinmar Energy, Enel Energie Muntenia, RWE Supply, Cyeb, Entrex Services, OMV Petrom, Electric&Gas Power, Pado Group, Design Proiect, Hermes Energy&Gas, Eva Energy, Gazmir Iasi, SST Grup Transilvania, Energy Gas Provider, RWE Energie, ICCO Energ, Delagaz&Energie, Mihoc Oil, Gaz Vest, Top Gas Network","Delgaz Grid","-","2018-10-11","09:00:00","2018-10-11","14:00:00","Mediaș","Efectuată","-","2018-10-11","09:00:00","2018-10-11","14:30:00","2018-10-11","09:53:00","2018-10-09","09:33:00","8346/09.10.2018","DA",null,null,{"$f":"IF(B28=\"X\",IF(AN28=\"\",\"Afectat sau NU?\",IF(AN28=\"DA\",IF(((AK28+AL28)-(AE28+AF28))*24<-720,\"Neinformat\",((AK28+AL28)-(AE28+AF28))*24),\"Nu a fost afectat producator/consumator\")),\"\")","v":-47.449999999953434},{"$f":"IF(B28=\"X\",IF(AN28=\"DA\",IF(AQ28<6,LEN(TRIM(V28))-LEN(SUBSTITUTE(V28,CHAR(44),\"\"))+1,0),\"-\"),\"\")","v":1},{"$f":"IF(B28=\"X\",IF(AN28=\"DA\",LEN(TRIM(V28))-LEN(SUBSTITUTE(V28,CHAR(44),\"\"))+1,\"-\"),\"\")","v":1},{"$f":"IF(B28=\"X\",IF(AN28=\"\",\"Afectat sau NU?\",IF(AN28=\"DA\",IF(((AI28+AJ28)-(AE28+AF28))*24<-720,\"Neinformat\",((AI28+AJ28)-(AE28+AF28))*24),\"Nu a fost afectat producator/consumator\")),\"\")","v":0.88333333341870457},{"$f":"IF(B28=\"X\",IF(AN28=\"DA\",IF(AT28<6,LEN(TRIM(U28))-LEN(SUBSTITUTE(U28,CHAR(44),\"\"))+1,0),\"-\"),\"\")","v":44},{"$f":"IF(B28=\"X\",IF(AN28=\"DA\",LEN(TRIM(U28))-LEN(SUBSTITUTE(U28,CHAR(44),\"\"))+1,\"-\"),\"\")","v":44},{"$f":"IF(B28=\"X\",IF(AN28=\"\",\"Afectat sau NU?\",IF(AN28=\"DA\",((AG28+AH28)-(AE28+AF28))*24,\"Nu a fost afectat producator/consumator\")),\"\")","v":5.4999999999417923},{"$f":"IF(B28=\"X\",IF(AN28=\"DA\",IF(AW28>24,IF(AZ28=\"NU\",0,LEN(TRIM(V28))-LEN(SUBSTITUTE(V28,CHAR(44),\"\"))+1),0),\"-\"),\"\")","v":0},{"$f":"IF(B28=\"X\",IF(AN28=\"DA\",IF(AW28>24,LEN(TRIM(V28))-LEN(SUBSTITUTE(V28,CHAR(44),\"\"))+1,0),\"-\"),\"\")","v":0}]
[13,"X","-","Înlocuire robinet separator de lichid la SRM Certeze",137407,"Certeze","Satu Mare",385764.67,714173.95,385764.67,714173.95,"-","-","SM1215D0","Certeze","-","-","-","-","SM-SD001","Engie România, Restart Energy, E.On Energie, OMV Petrom, CEZ Vanzare, Enel Energie, Gaz Est, MET România, Energy Distribution, GAZ Vest, Distrigaz Vest,  Tinmar Energy, Electric&Gas Power, Energy Gas Provider, RWE Energie, Energia GAS, Premier Energy","Gaz Vest","-","2018-10-16","11:10:00","2018-10-16","14:00:00","Cluj","Efectuată","-","2018-10-16","11:10:00","2018-10-16","13:45:00","2018-10-16","11:33:00","2018-10-16","11:19:00","11604/15.10.2018","DA",null,null,{"$f":"IF(B29=\"X\",IF(AN29=\"\",\"Afectat sau NU?\",IF(AN29=\"DA\",IF(((AK29+AL29)-(AE29+AF29))*24<-720,\"Neinformat\",((AK29+AL29)-(AE29+AF29))*24),\"Nu a fost afectat producator/consumator\")),\"\")","v":0.1499999999650754},{"$f":"IF(B29=\"X\",IF(AN29=\"DA\",IF(AQ29<6,LEN(TRIM(V29))-LEN(SUBSTITUTE(V29,CHAR(44),\"\"))+1,0),\"-\"),\"\")","v":1},{"$f":"IF(B29=\"X\",IF(AN29=\"DA\",LEN(TRIM(V29))-LEN(SUBSTITUTE(V29,CHAR(44),\"\"))+1,\"-\"),\"\")","v":1},{"$f":"IF(B29=\"X\",IF(AN29=\"\",\"Afectat sau NU?\",IF(AN29=\"DA\",IF(((AI29+AJ29)-(AE29+AF29))*24<-720,\"Neinformat\",((AI29+AJ29)-(AE29+AF29))*24),\"Nu a fost afectat producator/consumator\")),\"\")","v":0.38333333318587393},{"$f":"IF(B29=\"X\",IF(AN29=\"DA\",IF(AT29<6,LEN(TRIM(U29))-LEN(SUBSTITUTE(U29,CHAR(44),\"\"))+1,0),\"-\"),\"\")","v":16},{"$f":"IF(B29=\"X\",IF(AN29=\"DA\",LEN(TRIM(U29))-LEN(SUBSTITUTE(U29,CHAR(44),\"\"))+1,\"-\"),\"\")","v":16},{"$f":"IF(B29=\"X\",IF(AN29=\"\",\"Afectat sau NU?\",IF(AN29=\"DA\",((AG29+AH29)-(AE29+AF29))*24,\"Nu a fost afectat producator/consumator\")),\"\")","v":2.5833333331975155},{"$f":"IF(B29=\"X\",IF(AN29=\"DA\",IF(AW29>24,IF(AZ29=\"NU\",0,LEN(TRIM(V29))-LEN(SUBSTITUTE(V29,CHAR(44),\"\"))+1),0),\"-\"),\"\")","v":0},{"$f":"IF(B29=\"X\",IF(AN29=\"DA\",IF(AW29>24,LEN(TRIM(V29))-LEN(SUBSTITUTE(V29,CHAR(44),\"\"))+1,0),\"-\"),\"\")","v":0}]
[14,"X","-","Reparatia defectelor de coroziune pe conducta Dn500 Avram Iancu-Arad II din zona Zerind, Chisineu Cris si Parc Socodor ",27285,"Avram Iancu ","Bihor",231769.69,565272.24,233493.462,580485.38,"-","-","SM0359D0","Avram Iancu ","-","-","-","-","SM-SD001","Engie Romania SA, Electrica Furnizare SA, Premier Energy Trading SRL, Sc Premier Energy SRL, Sc Restart Energy One SA, Wiee Romania  SRL, E.On Energie Romania SA, E.On Gaz Furnizare SA, Omv Petrom Gas SRL, Cez Vanzare SA, Enel Energie SA, Energia Gas & Power SRL,  Gaz Est SA, Met Romania Energy SA, Sc Nova Power & Gas SRL, Energy Distribution Services SRL, CPL Concordia Filiala Cluj Romania SRL, Hargaz Harghita Gaz SA, Prisma Serv Company SRL, Conef Gaz SRL, Distrigaz Vest SA, Next Energy Distribution SRL, Cis Gaz SA, Aderro Gp Energy Srl, Tinmar Energy SA, Enel Energie Muntenia SA, Rwe Supply & Trading GmbH, Cyeb SRL, Entrex Services SRL, Omv Petrom SA, Electric & Gas Power Trade SRL, Sc Pado Group Infrastructures SRL, SC Design Proiect SRL, Hermes Energy&Gas SRL, Sc Eva Energy SA, Gazmir Iasi SRL, SST Grup Transilvania SRL, Tetarom SA, Energy Gas Provider SRL, Rwe Energie SRL, Icco Energ SRL, Delagaz & Energie SRL, Mihoc Oil SRL, Gaz Vest SA, Top Gas Network SRL","Gaz Vest","-","2018-10-18","09:10:00","2018-10-19","18:00:00","Arad","Efectuată","-","2018-10-18","09:10:00","2018-10-19","13:20:00","2018-10-18","10:25:00","2018-10-18","09:48:00","8943/16.10.2018","DA","Notificarea PA a fost făcuta de la început pentru perioada mai mare de 24 h",null,{"$f":"IF(B30=\"X\",IF(AN30=\"\",\"Afectat sau NU?\",IF(AN30=\"DA\",IF(((AK30+AL30)-(AE30+AF30))*24<-720,\"Neinformat\",((AK30+AL30)-(AE30+AF30))*24),\"Nu a fost afectat producator/consumator\")),\"\")","v":0.63333333330228925},{"$f":"IF(B30=\"X\",IF(AN30=\"DA\",IF(AQ30<6,LEN(TRIM(V30))-LEN(SUBSTITUTE(V30,CHAR(44),\"\"))+1,0),\"-\"),\"\")","v":1},{"$f":"IF(B30=\"X\",IF(AN30=\"DA\",LEN(TRIM(V30))-LEN(SUBSTITUTE(V30,CHAR(44),\"\"))+1,\"-\"),\"\")","v":1},{"$f":"IF(B30=\"X\",IF(AN30=\"\",\"Afectat sau NU?\",IF(AN30=\"DA\",IF(((AI30+AJ30)-(AE30+AF30))*24<-720,\"Neinformat\",((AI30+AJ30)-(AE30+AF30))*24),\"Nu a fost afectat producator/consumator\")),\"\")","v":1.2500000000582077},{"$f":"IF(B30=\"X\",IF(AN30=\"DA\",IF(AT30<6,LEN(TRIM(U30))-LEN(SUBSTITUTE(U30,CHAR(44),\"\"))+1,0),\"-\"),\"\")","v":45},{"$f":"IF(B30=\"X\",IF(AN30=\"DA\",LEN(TRIM(U30))-LEN(SUBSTITUTE(U30,CHAR(44),\"\"))+1,\"-\"),\"\")","v":45},{"$f":"IF(B30=\"X\",IF(AN30=\"\",\"Afectat sau NU?\",IF(AN30=\"DA\",((AG30+AH30)-(AE30+AF30))*24,\"Nu a fost afectat producator/consumator\")),\"\")","v":28.166666666627862},{"$f":"IF(B30=\"X\",IF(AN30=\"DA\",IF(AW30>24,IF(AZ30=\"NU\",0,LEN(TRIM(V30))-LEN(SUBSTITUTE(V30,CHAR(44),\"\"))+1),0),\"-\"),\"\")","v":1},{"$f":"IF(B30=\"X\",IF(AN30=\"DA\",IF(AW30>24,LEN(TRIM(V30))-LEN(SUBSTITUTE(V30,CHAR(44),\"\"))+1,0),\"-\"),\"\")","v":1},"DA"]
[15,"X","-","Reparatia defectelor de coroziune pe conducta Dn500 Avram Iancu-Arad II din zona Zerind, Chisineu Cris si Parc Socodor ",9459,"Chișineu Criș ","Arad",231769.69,565272.24,233493.462,580485.38,"-","-","SM0356D0","SC Maricom Chișineu-Criș III","-","-","-","-","SM-SD001","Engie Romania SA, Electrica Furnizare SA, Premier Energy Trading SRL, Sc Premier Energy SRL, Sc Restart Energy One SA, Wiee Romania  SRL, E.On Energie Romania SA, E.On Gaz Furnizare SA, Omv Petrom Gas SRL, Cez Vanzare SA, Enel Energie SA, Energia Gas & Power SRL,  Gaz Est SA, Met Romania Energy SA, Sc Nova Power & Gas SRL, Energy Distribution Services SRL, CPL Concordia Filiala Cluj Romania SRL, Hargaz Harghita Gaz SA, Prisma Serv Company SRL, Conef Gaz SRL, Distrigaz Vest SA, Next Energy Distribution SRL, Cis Gaz SA, Aderro Gp Energy Srl, Tinmar Energy SA, Enel Energie Muntenia SA, Rwe Supply & Trading GmbH, Cyeb SRL, Entrex Services SRL, Omv Petrom SA, Electric & Gas Power Trade SRL, Sc Pado Group Infrastructures SRL, SC Design Proiect SRL, Hermes Energy&Gas SRL, Sc Eva Energy SA, Gazmir Iasi SRL, SST Grup Transilvania SRL, Tetarom SA, Energy Gas Provider SRL, Rwe Energie SRL, Icco Energ SRL, Delagaz & Energie SRL, Mihoc Oil SRL, Gaz Vest SA, Top Gas Network SRL","Gaz Vest","-","2018-10-18","09:10:00","2018-10-19","18:00:00","Arad","Efectuată","-","2018-10-18","09:10:00","2018-10-19","13:05:00","2018-10-18","10:25:00","2018-10-18","09:48:00","8943/16.10.2018","DA","Notificarea PA a fost făcuta de la început pentru perioada mai mare de 24 h",null,0.63333333330228925,1,1,1.2500000000582077,45,45,27.916666666686069,1,1,"DA"]
[16,"X","-","Reparatia defectelor de coroziune pe conducta Dn500 Avram Iancu-Arad II din zona Zerind, Chisineu Cris si Parc Socodor ",9459,"Chișineu Criș ","Arad",233939.59,564386.59,233939.59,564386.59,"-","-","SM0357D0","Chișineu-Criș I","-","-","-","-","SM-SD001","Engie Romania SA, Electrica Furnizare SA, Premier Energy Trading SRL, Sc Premier Energy SRL, Sc Restart Energy One SA, Wiee Romania  SRL, E.On Energie Romania SA, E.On Gaz Furnizare SA, Omv Petrom Gas SRL, Cez Vanzare SA, Enel Energie SA, Energia Gas & Power SRL,  Gaz Est SA, Met Romania Energy SA, Sc Nova Power & Gas SRL, Energy Distribution Services SRL, CPL Concordia Filiala Cluj Romania SRL, Hargaz Harghita Gaz SA, Prisma Serv Company SRL, Conef Gaz SRL, Distrigaz Vest SA, Next Energy Distribution SRL, Cis Gaz SA, Aderro Gp Energy Srl, Tinmar Energy SA, Enel Energie Muntenia SA, Rwe Supply & Trading GmbH, Cyeb SRL, Entrex Services SRL, Omv Petrom SA, Electric & Gas Power Trade SRL, Sc Pado Group Infrastructures SRL, SC Design Proiect SRL, Hermes Energy&Gas SRL, Sc Eva Energy SA, Gazmir Iasi SRL, SST Grup Transilvania SRL, Tetarom SA, Energy Gas Provider SRL, Rwe Energie SRL, Icco Energ SRL, Delagaz & Energie SRL, Mihoc Oil SRL, Gaz Vest SA, Top Gas Network SRL","Gaz Vest","-","2018-10-18","09:10:00","2018-10-19","18:00:00","Arad","Efectuată","-","2018-10-18","09:10:00","2018-10-19","13:15:00","2018-10-18","10:25:00","2018-10-18","09:48:00","8943/16.10.2018","NU","Notificarea PA a fost făcuta de la început pentru perioada mai mare de 24 h",null,{"$f":"IF(B32=\"X\",IF(AN32=\"\",\"Afectat sau NU?\",IF(AN32=\"DA\",IF(((AK32+AL32)-(AE32+AF32))*24<-720,\"Neinformat\",((AK32+AL32)-(AE32+AF32))*24),\"Nu a fost afectat producator/consumator\")),\"\")","v":"Nu a fost afectat producator/consumator"},{"$f":"IF(B32=\"X\",IF(AN32=\"DA\",IF(AQ32<6,LEN(TRIM(V32))-LEN(SUBSTITUTE(V32,CHAR(44),\"\"))+1,0),\"-\"),\"\")","v":"-"},{"$f":"IF(B32=\"X\",IF(AN32=\"DA\",LEN(TRIM(V32))-LEN(SUBSTITUTE(V32,CHAR(44),\"\"))+1,\"-\"),\"\")","v":"-"},{"$f":"IF(B32=\"X\",IF(AN32=\"\",\"Afectat sau NU?\",IF(AN32=\"DA\",IF(((AI32+AJ32)-(AE32+AF32))*24<-720,\"Neinformat\",((AI32+AJ32)-(AE32+AF32))*24),\"Nu a fost afectat producator/consumator\")),\"\")","v":"Nu a fost afectat producator/consumator"},{"$f":"IF(B32=\"X\",IF(AN32=\"DA\",IF(AT32<6,LEN(TRIM(U32))-LEN(SUBSTITUTE(U32,CHAR(44),\"\"))+1,0),\"-\"),\"\")","v":"-"},{"$f":"IF(B32=\"X\",IF(AN32=\"DA\",LEN(TRIM(U32))-LEN(SUBSTITUTE(U32,CHAR(44),\"\"))+1,\"-\"),\"\")","v":"-"},{"$f":"IF(B32=\"X\",IF(AN32=\"\",\"Afectat sau NU?\",IF(AN32=\"DA\",((AG32+AH32)-(AE32+AF32))*24,\"Nu a fost afectat producator/consumator\")),\"\")","v":"Nu a fost afectat producator/consumator"},{"$f":"IF(B32=\"X\",IF(AN32=\"DA\",IF(AW32>24,IF(AZ32=\"NU\",0,LEN(TRIM(V32))-LEN(SUBSTITUTE(V32,CHAR(44),\"\"))+1),0),\"-\"),\"\")","v":"-"},{"$f":"IF(B32=\"X\",IF(AN32=\"DA\",IF(AW32>24,LEN(TRIM(V32))-LEN(SUBSTITUTE(V32,CHAR(44),\"\"))+1,0),\"-\"),\"\")","v":"-"},"DA"]
[17,"X","-","Reparatia defectelor de coroziune pe conducta Dn500 Avram Iancu-Arad II din zona Zerind, Chisineu Cris si Parc Socodor ",12849,"Zerind ","Arad",231769.69,565272.24,233493.462,580485.38,"-","-","SM0868D0","Zerind ","-","-","-","-","SM-SD001","Engie Romania SA 1, Restart Energy One SA, E.ON Energie Romania SA, OMV Petrom Gas SRL, CEZ Vanzare SA, ENEL Energie SA, Gaz Est SA, Met Romania Energy SA, Energy Distribution Services SRL, Gaz Vest SA, Distrigaz Vest SA, Tinmar Energy SA, Electric & Gas Power Trade SRL, Energy Gas Provider SRL, Rwe Energie SRL, Energia Gas & Power SRL, Premier Energy SRL","Delgaz Grid","-","2018-10-18","09:10:00","2018-10-19","18:00:00","Arad","Efectuată","-","2018-10-18","09:10:00","2018-10-19","12:36:00","2018-10-18","10:35:00","2018-10-18","09:54:00","8943/16.10.2018","DA","Notificarea PA a fost făcuta de la început pentru perioada mai mare de 24 h",null,0.73333333327900618,1,1,1.4166666665696539,17,17,27.433333333348855,1,1,"DA"]
[18,"X","-","Reparatia defectelor de coroziune pe conducta Dn500 Avram Iancu-Arad II din zona Zerind, Chisineu Cris si Parc Socodor ",9547,"Ineu","Arad",256278.42,552609.19999999995,256278.42,552609.19999999995,"SM0915D0","Ineu","-","-","-","-","-","-","SM-SD001","Engie Romania SA 1, Restart Energy One SA, E.ON Energie Romania SA, OMV Petrom Gas SRL, CEZ Vanzare SA, ENEL Energie SA, Gaz Est SA, Met Romania Energy SA, Energy Distribution Services SRL, Gaz Vest SA, Distrigaz Vest SA, Tinmar Energy SA, Electric & Gas Power Trade SRL, Energy Gas Provider SRL, Rwe Energie SRL, Energia Gas & Power SRL, Premier Energy SRL","Delgaz Grid","-","2018-10-18","09:10:00","2018-10-19","18:00:00","Arad","Efectuată","-","2018-10-18","09:10:00","2018-10-19","12:55:00","2018-10-18","10:35:00","2018-10-18","09:54:00","8943/16.10.2018","NU","Notificarea PA a fost făcuta de la început pentru perioada mai mare de 24 h",null,"Nu a fost afectat producator/consumator","-","-","Nu a fost afectat producator/consumator","-","-","Nu a fost afectat producator/consumator","-","-"]
[19,"X","-","Înlocuirea a două tronsoane de conductă (Ø 3”) pe racordul SRM-ului, între robinetul R2 și SRM Săcădate.",144054,"Săcădate","Sibiu",452369.28303981997,473784.67483611999,452369.28303981997,473784.67483611999,"-","-","SM0796D0","Săcădate","-","-","-","-","SM-SD001","Engie România, Electrica Furnizare, Premier Energy Trading, Premier Energy, Restart Energy One, Wiee România, E.On Energie, E.ON Gaz Furnizare, OMV Petrom Gas, CEZ Vanzare, Enel Energie , Energia Gas&Power, Gaz Est, MET România, Nova Power&Gas, Energy Distribution, CPL Concordia, Hargaz Harghita, Prisma Serv, Conef Gaz, Distrigaz Vest, Next Energy, CIS Gaz, Aderro GP, Tinmar Energy, Enel Energie Muntenia, RWE Supply, Cyeb, Entrex Services, OMV Petrom, Electric&Gas Power, Pado Group, Design Proiect, Hermes Energy&Gas, Eva Energy, Gazmir Iasi, SST Grup Transilvania, Energy Gas Provider, RWE Energie, ICCO Energ, Delagaz&Energie, Mihoc Oil, Gaz Vest, Top Gas Network","Delgaz Grid","-","2018-10-19","09:03:00","2018-10-19","14:00:00","Mediaș","Efectuată","-","2018-10-19","09:03:00","2018-10-19","15:30:00","2018-10-19","12:08:00","2018-10-19","09:48:00","8578/17.10.2018","DA",null,null,0.75,1,1,3.0833333334303461,44,44,6.4500000000698492,0,0]
[20,"X","-","Lucrari urgente in sistemul de distributie  - SRM Brasov IV",40198,"Brașov","Brașov",543024,463918,543024,463918,"-","-","SM1135D0","Brasov IV","-","-","-","-","SM-SD001","Engie România, Electrica Furnizare, Premier Energy Trading, Premier Energy, Restart Energy One, Wiee România, E.On Energie, OMV Petrom Gas, CEZ Vanzare, Enel Energie , Energia Gas&Power, Gaz Est, MET România, Nova Power&Gas, Euro Seven Industry, Oligop, Energy Distribution, Electrocentrale Constanța, Hargaz Harghita, Conef Gaz, Megaconstruct, Distrigaz Vest, Electrocentrale București, Next Energy, CIS Gaz, Transenergo, Aderro GP, Tinmar Energy, Enel Energie Muntenia, RWE Supply, Romgaz, Cyeb, Entrex Services, OMV Petrom, Electric&Gas Power, Hermes Energy&Gas, Eva Energy, Gas Energy Echoterm, Energy Gas Provider, RWE Energie, ICCO Energ, Delagaz&Energie, Top Gas Network, Covi Construct 2000","Distrigaz Sud Rețele","-","2018-10-19","10:10:00","2018-10-19","14:00:00","Brașov","Efectuată","-","2018-10-19","10:10:00","2018-10-19","13:00:00","2018-10-19","12:12:00","2018-10-19","10:56:00","-","NU",null,null,{"$f":"IF(B36=\"X\",IF(AN36=\"\",\"Afectat sau NU?\",IF(AN36=\"DA\",IF(((AK36+AL36)-(AE36+AF36))*24<-720,\"Neinformat\",((AK36+AL36)-(AE36+AF36))*24),\"Nu a fost afectat producator/consumator\")),\"\")","v":"Nu a fost afectat producator/consumator"},{"$f":"IF(B36=\"X\",IF(AN36=\"DA\",IF(AQ36<6,LEN(TRIM(V36))-LEN(SUBSTITUTE(V36,CHAR(44),\"\"))+1,0),\"-\"),\"\")","v":"-"},{"$f":"IF(B36=\"X\",IF(AN36=\"DA\",LEN(TRIM(V36))-LEN(SUBSTITUTE(V36,CHAR(44),\"\"))+1,\"-\"),\"\")","v":"-"},{"$f":"IF(B36=\"X\",IF(AN36=\"\",\"Afectat sau NU?\",IF(AN36=\"DA\",IF(((AI36+AJ36)-(AE36+AF36))*24<-720,\"Neinformat\",((AI36+AJ36)-(AE36+AF36))*24),\"Nu a fost afectat producator/consumator\")),\"\")","v":"Nu a fost afectat producator/consumator"},{"$f":"IF(B36=\"X\",IF(AN36=\"DA\",IF(AT36<6,LEN(TRIM(U36))-LEN(SUBSTITUTE(U36,CHAR(44),\"\"))+1,0),\"-\"),\"\")","v":"-"},{"$f":"IF(B36=\"X\",IF(AN36=\"DA\",LEN(TRIM(U36))-LEN(SUBSTITUTE(U36,CHAR(44),\"\"))+1,\"-\"),\"\")","v":"-"},{"$f":"IF(B36=\"X\",IF(AN36=\"\",\"Afectat sau NU?\",IF(AN36=\"DA\",((AG36+AH36)-(AE36+AF36))*24,\"Nu a fost afectat producator/consumator\")),\"\")","v":"Nu a fost afectat producator/consumator"},{"$f":"IF(B36=\"X\",IF(AN36=\"DA\",IF(AW36>24,IF(AZ36=\"NU\",0,LEN(TRIM(V36))-LEN(SUBSTITUTE(V36,CHAR(44),\"\"))+1),0),\"-\"),\"\")","v":"-"},{"$f":"IF(B36=\"X\",IF(AN36=\"DA\",IF(AW36>24,LEN(TRIM(V36))-LEN(SUBSTITUTE(V36,CHAR(44),\"\"))+1,0),\"-\"),\"\")","v":"-"}]
[21,"X","-","Pentu cuplarea tronsonului nou de conducta DN 250 la conducta DN 250 racord SRM Breaza pentru realizarea devierii conductei, pentru punerea in siguranta a conductei",131121,"Breaza de Sus","Prahova",551059,410660,551059,410660,"-","-","SM0085D1","Breaza PH","-","-","-","-","SM-SD001","Engie România, Electrica Furnizare, Premier Energy Trading, Premier Energy, Restart Energy One, Wiee România, E.On Energie, OMV Petrom Gas, CEZ Vanzare, Enel Energie , Energia Gas&Power, Gaz Est, MET România, Nova Power&Gas, Euro Seven Industry, Oligop, Energy Distribution, Electrocentrale Constanța, Hargaz Harghita, Conef Gaz, Megaconstruct, Distrigaz Vest, Electrocentrale București, Next Energy, CIS Gaz, Transenergo, Aderro GP, Tinmar Energy, Enel Energie Muntenia, RWE Supply, Romgaz, Cyeb, Entrex Services, OMV Petrom, Electric&Gas Power, Hermes Energy&Gas, Eva Energy, Gas Energy Echoterm, Energy Gas Provider, RWE Energie, ICCO Energ, Delagaz&Energie, Top Gas Network, Covi Construct 2000","Distrigaz Sud Rețele","-","2018-10-24","08:15:00","2018-10-24","16:00:00","București","Efectuată","-","2018-10-24","08:15:00","2018-10-24","15:55:00",null,null,"2018-10-24","08:23:00","6883/22.10.2018","DA",null,null,0.13333333341870457,1,1,"Neinformat",0,44,7.6666666666860692,0,0]
[22,"X","-","Pentu cuplarea tronsonului nou de conducta DN 250 la conducta DN 250 racord SRM Breaza pentru realizarea devierii conductei, pentru punerea in siguranta a conductei",131121,"Breaza","Prahova",551059,410660,551059,410660,"-","-","SM0085D2","Hidrojet Breaza","-","-","-","-","SM-SD001","Engie România, Electrica Furnizare, Premier Energy Trading, Premier Energy, Restart Energy One, Wiee România, E.On Energie, OMV Petrom Gas, CEZ Vanzare, Enel Energie , Energia Gas&Power, Gaz Est, MET România, Nova Power&Gas, Euro Seven Industry, Oligop, Energy Distribution, Electrocentrale Constanța, Hargaz Harghita, Conef Gaz, Megaconstruct, Distrigaz Vest, Electrocentrale București, Next Energy, CIS Gaz, Transenergo, Aderro GP, Tinmar Energy, Enel Energie Muntenia, RWE Supply, Romgaz, Cyeb, Entrex Services, OMV Petrom, Electric&Gas Power, Hermes Energy&Gas, Eva Energy, Gas Energy Echoterm, Energy Gas Provider, RWE Energie, ICCO Energ, Delagaz&Energie, Top Gas Network, Covi Construct 2000","Hidrojet Breaza","-","2018-10-24","08:15:00","2018-10-24","16:00:00","București","Efectuată","-","2018-10-24","08:15:00","2018-10-24","15:55:00","2018-10-24","09:08:00","2018-10-24","08:27:00","6883/22.10.2018","DA",null,null,0.19999999995343387,1,1,0.88333333341870457,44,44,7.6666666666860692,0,0]
[23,"X","-","Montare flanșă elecroizolantă în SRM Bârghiș",144232,"Bârghiș","Sibiu",464305.68,499196.58,464305.68,499196.58,"-","-","SM0787D0","Bârghiș","-","-","-","-","SM-SD001","Engie România, Electrica Furnizare, Premier Energy Trading, Premier Energy, Restart Energy One, Wiee România, E.On Energie, E.ON Gaz Furnizare, OMV Petrom Gas, CEZ Vanzare, Enel Energie , Energia Gas&Power, Gaz Est, MET România, Nova Power&Gas, Energy Distribution, CPL Concordia, Hargaz Harghita, Prisma Serv, Conef Gaz, Distrigaz Vest, Next Energy, CIS Gaz, Aderro GP, Tinmar Energy, Enel Energie Muntenia, RWE Supply, Cyeb, Entrex Services, OMV Petrom, Electric&Gas Power, Pado Group, Design Proiect, Hermes Energy&Gas, Eva Energy, Gazmir Iasi, SST Grup Transilvania, Energy Gas Provider, RWE Energie, ICCO Energ, Delagaz&Energie, Mihoc Oil, Gaz Vest, Top Gas Network, Wiee România, Tinmar Energy","Delgaz Grid","-","2018-10-25","10:00:00","2018-10-25","14:00:00","Mediaș","Efectuată","-","2018-10-25","10:00:00","2018-10-25","14:00:00","2018-10-25","13:08:00","2018-10-25","12:58:00","8665/19.10.2018","DA",null,null,2.9666666667326353,1,1,3.1333333334187046,46,46,4.0000000001164153,0,0]
[24,"X","-","Înlocuire SRM Alum Menziken cu capacitatea de 1000 Mc/h cu SRM de capacitate 2000 mc/h",138084,"Medieșu Aurit","Satu Mare",359455.97435199999,698833.38690200006,359455.97435199999,698833.38690200006,"-","-","SM1189D0","SC Alu Menziken Medieșu Aurit","-","-","-","-","SM-CF001","Tinmar Energy","SC Alu Menziken Medieșu Aurit","-","2018-10-26","14:30:00","2018-10-26","16:00:00","Cluj","Efectuată","-","2018-10-26","14:30:00","2018-10-26","18:35:00","2018-10-26","15:20:00","2018-10-18","15:03:00",null,"DA",null,null,-191.44999999995343,1,1,0.8333333334303461,1,1,4.0833333333721384,0,0]
[25,"X","-","Dezafectare separator orizontal și eliminarea unui cupon de conductă de pe conducta DN 250mm Calacea-Mașloc din zona fostului PM Cărani",158653,"Cărani","Timiș",196499.87,499887.93,196499.87,499887.93,"-","-","-","-","-","-","PM0079","Cărani","PM-PP001","Amromco Energy, OMV Petrom","Gaz Vest","-","2018-10-31","07:20:00","2018-10-31","12:00:00","Arad","Efectuată","-","2018-10-31","07:20:00","2018-10-31","16:45:00","2018-10-31","07:38:00","2018-10-31","07:28:00","9419/29.10.2018","DA",null,null,0.13333333341870457,1,1,0.30000000010477379,2,2,9.4166666666278616,0,0]
[26,"X","-","Avarie prin perforare pe conducta Dn 400 Bărbuncești-Albești la cca. 2 km amonte de robinetul RV121",49661,"Bărbuncești","Buzău",625768.19999999995,414382.55,625768.19999999995,414382.55,"-","-","-","-","-","-","PM0032","Bărbuncești","PM-PP001","OMV Petrom","OMV Petrom","-","2018-11-01","16:20:00","2018-11-02","19:00:00","Brăila","Efectuată","-","2018-11-01","16:20:00","2018-11-02","04:30:00","2018-11-01","22:00:00","2018-11-01","17:13:00","8694/01.11.2018","DA",null,null,0.88333333341870457,1,1,5.6666666666278616,1,1,12.166666666686069,0,0]
[27,"X","-","Avarie prin perforare pe conducta Dn 400 Bărbuncești-Albești la cca. 2 km amonte de robinetul RV121",44818,"Buzău","Buzău",643073.02,405156.49,643073.02,405156.49,"SM0179D0","Buzău","-","-","-","-","-","-","SM-SD001","Cez vanzare, E.On Energie, Electrica Furnizare, Electrocentrale București, Enel Energie, Energy Distribution, Engie România, Met România, Premier Energy, RWE Supply, Aderro GP, Ciz Gaz, Conef Gaz, Covi Construct, Cyeb, Delagaz, Distrigaz Vest, Electric&Gas Power, Electrocentrale Constanța, Enel Energie Muntenia, Energia Gas&Power, Energy Gas Provider, Entrex, Euro Seven, Eva Energy, Gas Energy Echoterm, Gaz Est, Hargaz Harghita, Hermes Energy, Icco, Megaconstruct, Next Energy, Nova Power, Oligop, , OMV Petrom Gas, OMV Petrom, Premier, Restart Energy One, RWE Energie, Top Gas Network, Transenergo, Wiee România, Romgaz, Tinmar Energy","Distrigaz Sud Rețele","-","2018-11-01","16:20:00","2018-11-02","19:00:00","Brăila","Efectuată","-","2018-11-01","16:20:00","2018-11-02","04:30:00","2018-11-01","22:05:00","2018-11-01","17:27:00","8694/01.11.2018","DA",null,null,1.1166666666395031,1,1,5.7500000000582077,45,45,12.166666666686069,0,0]
[28,"X","-","Avarie prin perforare pe conducta Dn 500 Recaș - Timișoara I, Fir III",158314,"Recaș","Timiș",228618.48,484544.56,228618.48,484544.56,"-","-","SM0332D0","Recaș","-","-","-","-","SM-SD001","Engie România, Restart Energy, E.On Energie, OMV Petrom, CEZ Vanzare, Enel Energie, Gaz Est, MET România, Energy Distribution, GAZ Vest, Distrigaz Vest,  Tinmar Energy, Electric&Gas Power, Energy Gas Provider, RWE Energie, Energia GAS, Premier Energy, Enel Energie Muntenia","Gaz Vest","-","2018-11-06","15:30:00","2018-11-06","21:00:00","Arad","Efectuată","-","2018-11-06",null,"2018-11-07","10:55:00","2018-11-06","18:08:00","2018-11-06","15:24:00","9812/06.11.2018",null,null,null,{"$f":"IF(B44=\"X\",IF(AN44=\"\",\"Afectat sau NU?\",IF(AN44=\"DA\",IF(((AK44+AL44)-(AE44+AF44))*24<-720,\"Neinformat\",((AK44+AL44)-(AE44+AF44))*24),\"Nu a fost afectat producator/consumator\")),\"\")","v":"Afectat sau NU?"},{"$f":"IF(B44=\"X\",IF(AN44=\"DA\",IF(AQ44<6,LEN(TRIM(V44))-LEN(SUBSTITUTE(V44,CHAR(44),\"\"))+1,0),\"-\"),\"\")","v":"-"},{"$f":"IF(B44=\"X\",IF(AN44=\"DA\",LEN(TRIM(V44))-LEN(SUBSTITUTE(V44,CHAR(44),\"\"))+1,\"-\"),\"\")","v":"-"},{"$f":"IF(B44=\"X\",IF(AN44=\"\",\"Afectat sau NU?\",IF(AN44=\"DA\",IF(((AI44+AJ44)-(AE44+AF44))*24<-720,\"Neinformat\",((AI44+AJ44)-(AE44+AF44))*24),\"Nu a fost afectat producator/consumator\")),\"\")","v":"Afectat sau NU?"},{"$f":"IF(B44=\"X\",IF(AN44=\"DA\",IF(AT44<6,LEN(TRIM(U44))-LEN(SUBSTITUTE(U44,CHAR(44),\"\"))+1,0),\"-\"),\"\")","v":"-"},{"$f":"IF(B44=\"X\",IF(AN44=\"DA\",LEN(TRIM(U44))-LEN(SUBSTITUTE(U44,CHAR(44),\"\"))+1,\"-\"),\"\")","v":"-"},{"$f":"IF(B44=\"X\",IF(AN44=\"\",\"Afectat sau NU?\",IF(AN44=\"DA\",((AG44+AH44)-(AE44+AF44))*24,\"Nu a fost afectat producator/consumator\")),\"\")","v":"Afectat sau NU?"},{"$f":"IF(B44=\"X\",IF(AN44=\"DA\",IF(AW44>24,IF(AZ44=\"NU\",0,LEN(TRIM(V44))-LEN(SUBSTITUTE(V44,CHAR(44),\"\"))+1),0),\"-\"),\"\")","v":"-"},{"$f":"IF(B44=\"X\",IF(AN44=\"DA\",IF(AW44>24,LEN(TRIM(V44))-LEN(SUBSTITUTE(V44,CHAR(44),\"\"))+1,0),\"-\"),\"\")","v":"-"}]
[29,"X","-","Avarie prin perforare pe conducta Dn 500 Recaș - Timișoara I, Fir III",158314,"Izvin","Timiș",224757.12,484415.43,224757.12,484415.43,"-","-","SM0331D0","Izvin","-","-","-","-","SM-SD001","Engie România, Restart Energy, E.On Energie, OMV Petrom, CEZ Vanzare, Enel Energie, Gaz Est, MET România, Energy Distribution, GAZ Vest, Distrigaz Vest,  Tinmar Energy, Electric&Gas Power, Energy Gas Provider, RWE Energie, Energia GAS, Premier Energy, Enel Energie Muntenia","Gaz Vest","-","2018-11-06","16:00:00","2018-11-06","21:00:00","Arad","Efectuată","-",null,null,null,null,null,null,null,null,"9812/06.11.2018",null,null,null,"Afectat sau NU?","-","-","Afectat sau NU?","-","-","Afectat sau NU?","-","-"]
[30,"X","-","Cuplare instalație tehnologică nouă a SRMP Zagna Vădeni",44391," Vădeni","Brăila",728793.89,433063.82,728793.89,433063.82,"-","-","SM0532D0","Zagna Vădeni","-","-","-","-","SM-SD001","Engie România, Electrica Furnizare, Premier Energy Trading, Premier Energy, Restart Energy One, Wiee România, E.On Energie, OMV Petrom Gas, CEZ Vanzare, Enel Energie , Energia Gas&Power, Gaz Est, MET România, Nova Power&Gas, Euro Seven Industry, Oligop, Energy Distribution, Electrocentrale Constanța, Hargaz Harghita, Conef Gaz, Megaconstruct, Distrigaz Vest, Electrocentrale București, Next Energy, CIS Gaz, Transenergo, Aderro GP, Tinmar Energy, Enel Energie Muntenia, RWE Supply, Romgaz, Cyeb, Entrex Services, OMV Petrom, Electric&Gas Power, Hermes Energy&Gas, Eva Energy, Gas Energy Echoterm, Energy Gas Provider, RWE Energie, ICCO Energ, Delagaz&Energie, Top Gas Network, Covi Construct 2000","Distrigaz Sud Rețele","-","2018-11-07","08:10:00","2018-11-07","18:00:00","Brăila","Efectuată","-","2018-11-07","08:10:00","2018-11-07","16:40:00","2018-11-07","08:50:00","2018-11-07","08:24:00","8780/05.11.2018",null,null,null,"Afectat sau NU?","-","-","Afectat sau NU?","-","-","Afectat sau NU?","-","-"]
[31,"X","-","Godevilare Ø20\" Urziceni-Moara Domnească",102240,"Coșereni","Ialomița",627314.19200000004,359000.32900000003,596653.76800000004,334093.08100000001,"SM1178D0","Coșereni","-","-","-","-","-","-","SM-SD001","Energie România, Restart Energy One, E.On Energie Ro, OMV Petrom Gas, Cez Vanzare, Enel Energie, Met Romania Energy, Megaconstruct, Aderro GP, Tinmar Energy, Enel Energie Muntenia, Entrex Services, Rwe Energie, OMV Petrom, Eva Energy","MegaConstruct","-","2018-11-07","10:00:00","2018-11-07","10:30:00","București","Efectuată","-","2018-11-07","11:15:00","2018-11-07","11:45:00",null,null,"2018-11-05","15:40:00","7230/06.11.2018","NU",null,null,"Nu a fost afectat producator/consumator","-","-","Nu a fost afectat producator/consumator","-","-","Nu a fost afectat producator/consumator","-","-"]
[null,null,null,null,null,null,null,null,null,null,null,null,null,null,null,null,null,null,null,null,null,null,null,null,null,null,null,null,null,null,null,null,null,null,null,null,null,null,null,null,null,null,"","","","","","","","",""]
[null,null,null,null,null,null,null,null,null,null,null,null,null,null,null,null,null,null,null,null,null,null,null,null,null,null,null,null,null,null,null,null,null,null,null,null,null,null,null,null,null,null,"","","","","","","","",""]
[null,null,null,null,null,null,null,null,null,null,null,null,null,null,null,null,null,null,null,null,null,null,null,null,null,null,null,null,null,null,null,null,null,null,null,null,null,null,null,null,null,null,"","","","","","","","",""]
[null,null,null,null,null,null,null,null,null,null,null,null,null,null,null,null,null,null,null,null,null,null,null,null,null,null,null,null,null,null,null,null,null,null,null,null,null,null,null,null,null,null,"","","","","","","","",""]
[null,null,null,null,null,null,null,null,null,null,null,null,null,null,null,null,null,null,null,null,null,null,null,null,null,null,null,null,null,null,null,null,null,null,null,null,null,null,null,null,null,null,"","","","","","","","",""]